[Event "1st Archibald 2019"]
[Site "Sochi"]
[Date "2019.05.14"]
[Round "3.14"]
[White "Eraschenkov, Denis"]
[Black "Bimiev, Ahmad"]
[Result "1-0"]
[ECO "B10"]
[WhiteElo "2391"]
[BlackElo "2196"]
[Annotator "NA RC"]
[PlyCount "74"]
[EventDate "2019.05.12"]
[EventType "swiss"]
[EventCountry "RUS"]
[SourceTitle "playchess.com"]
[Source "ChessBase"]
[SourceQuality "1"]
[TimeControl "5400+30"]

1. e4 {[%emt 0:00:28]} c6 {[%emt 0:04:38]} 2. c4 {[%emt 0:00:29]} d5 {[%emt 0:00:37]} 3. exd5 {[%emt 0:00:32]} cxd5 {[%emt 0:00:33]} 4. cxd5 {[%emt 0:00:29]} Nf6 {[%emt 0:00:35]} 5. Nc3 {[%emt 0:00:30]} Nxd5 {[%emt 0:00:38]} 6. Bc4 {[%emt 0:00:30]} Nxc3 {[%emt 0:08:53] B10: Caro-Kann: 2 d3 and 2 c4} 7. bxc3 {[%emt 0:07:52]} Qc7 {[%emt 0:00:24]} 8. Qe2 {[%emt 0:00:24]} Nd7 {[%emt 0:00:24]} 9. Nf3 {[%emt 0:00:24]} e6 {[%emt 0:00:23]} 10. O-O {[%emt 0:00:23]} Be7 {[%emt 0:02:58]} 11. d4 {[%emt 0:06:08]} O-O {[%emt 0:00:31]} 12. Bd2 {[%emt 0:06:18]} (12. Bb2 b6 13. Bd3 Bb7 14. c4 Rfe8 15. Rac1 Qf4 16. Nd2 Nf6 17. g3 Qc7 18. f3 Rac8 19. Ne4 {½-½ (43) Timman,J (2573)-Gelfand,B (2737) Douglas 2017}) 12... Bf6 {[%emt 0:00:23]} 13. Bd3 $146 {[%emt 0:04:11]} ({Predecessor:} 13. Rfe1 b6 14. Bd3 Bb7 15. Rac1 Rfe8 16. Ng5 Bxg5 17. Bxg5 e5 18. Qg4 Kh8 19. Qf5 {1-0 (67) Okhotnik,V (2442)-Rooze,J (2262) Acqui Terme 2015}) 13... g6 {[%emt 0:18:51]} 14. Qe4 {[%emt 0:07:00]} Bg7 {[%emt 0:14:21]} 15. Rfe1 {[%emt 0:06:13]} e5 {[%emt 0:11:56]} 16. Qh4 {[%emt 0:05:02]} exd4 {[%emt 0:05:09]} 17. cxd4 {[%emt 0:00:32]} Nf6 {[%emt 0:01:01]} 18. Bb4 {[%emt 0:03:23]} Re8 {[%emt 0:02:15]} 19. Rxe8+ {[%emt 0:06:47]} Nxe8 {[%emt 0:00:25]} 20. Re1 {[%emt 0:00:45]} Nf6 {[%emt 0:03:35]} (20... Bd7 $1 $11) 21. Be7 $14 {[%emt 0:01:16]} Nd5 {[%emt 0:16:02]} 22. Bc5 {[%emt 0:04:55]} Be6 {[%emt 0:05:59]} 23. Ng5 {[%emt 0:03:41]} Nf6 {[%emt 0:00:15]} 24. Nxe6 {[%emt 0:02:56]} Qa5 {[%emt 0:00:58]} 25. Rb1 {[%emt 0:04:10]} fxe6 {[%emt 0:00:00]} 26. Bc4 {[%emt 0:00:28]} Re8 {[%emt 0:00:59]} 27. Qh3 {[%emt 0:03:42]} Nd5 {[%emt 0:00:34]} 28. Rxb7 {[%emt 0:01:58]} Qe1+ {[%emt 0:00:10]} 29. Bf1 {[%emt 0:00:00]} Nf4 {[%emt 0:00:18]} 30. Qe3 {[%emt 0:00:52]} Qxe3 {[%emt 0:00:21]} 31. fxe3 {[%emt 0:00:06]} Nd5 {[%emt 0:00:31]} 32. e4 {[%emt 0:05:12]} Nc3 {[%emt 0:00:02]} 33. e5 {[%emt 0:00:45]} Nxa2 {[%emt 0:00:28]} 34. Bb5 {[%emt 0:00:22]} Rd8 {[%emt 0:00:46]} 35. Bc4 {[%emt 0:01:21]} Nc3 {[%emt 0:00:00]} 36. Bxe6+ {[%emt 0:00:36]} Kh8 {[%emt 0:00:01]} 37. Rxa7 {[%emt 0:01:45]} Nb5 {[%emt 0:02:24]} 1-0

[Event "1st Archibald 2019"]
[Site "Sochi"]
[Date "2019.05.14"]
[Round "3.19"]
[White "Najdin, Danil"]
[Black "Azimov, Ilyas"]
[Result "0-1"]
[ECO "B40"]
[WhiteElo "2314"]
[BlackElo "2223"]
[Annotator "RC"]
[PlyCount "112"]
[EventDate "2019.05.12"]
[EventType "swiss"]
[EventCountry "RUS"]
[SourceTitle "playchess.com"]
[Source "ChessBase"]
[SourceQuality "1"]
[TimeControl "5400+30"]

1. e4 {[%emt 1:15:20]} c5 {[%emt 1:15:20]} 2. Nf3 {[%emt 0:00:27]} e6 {[%emt 0:07:21]} 3. d4 {[%emt 0:00:20]} cxd4 {[%emt 0:00:25]} 4. Nxd4 {[%emt 0:00:29]} Nc6 {[%emt 0:00:28]} 5. Nxc6 {[%emt 0:01:57]} bxc6 {[%emt 0:00:22]} 6. Bd3 {[%emt 0:00:23]} Nf6 {[%emt 0:00:21]} 7. O-O {[%emt 0:00:21]} d5 {[%emt 0:00:21]} 8. Bg5 {[%emt 0:00:21]} Be7 {[%emt 0:00:22]} 9. Nc3 {[%emt 0:00:23]} Nxe4 {[%emt 0:00:21]} 10. Bxe7 {[%emt 0:02:02]} Nxc3 {[%emt 0:00:20]} 11. Qe1 {[%emt 0:00:20]} Qxe7 {[%emt 0:00:29]} 12. Qxc3 {[%emt 0:00:26]} O-O {[%emt 0:01:51]} 13. Qxc6 {[%emt 0:00:20]} Bb7 {[%emt 0:00:20]} 14. Qa4 {[%emt 0:00:28]} e5 {[%emt 0:00:22]} 15. Rfe1 {[%emt 0:00:24]} f5 {[%emt 0:00:21]} 16. Rad1 {[%emt 0:12:56]} Qf6 {[%emt 0:08:46]} 17. f4 {[%emt 0:00:20]} Qb6+ {[%emt 0:00:24]} 18. Kf1 {[%emt 0:00:22]} e4 {[%emt 0:00:36]} 19. Be2 {[%emt 0:01:41]} Qh6 {[%emt 0:00:30]} 20. g3 {[%emt 0:00:30]} Qxh2 {[%emt 0:00:24]} 21. Qb3 {[%emt 0:00:30]} Qh1+ {[%emt 0:00:36]} 22. Kf2 {[%emt 0:00:30]} Qh2+ {[%emt 0:00:30]} 23. Kf1 {[%emt 0:00:30]} Rab8 {[%emt 0:00:30]} 24. Qe3 {[%emt 0:00:30]} Ba8 {[%emt 0:00:30]} 25. b3 {[%emt 0:00:30]} Rbd8 {[%emt 0:00:30]} 26. Rd4 {[%emt 0:00:30]} Rf6 {[%emt 0:00:30]} 27. Qf2 {[%emt 0:00:30]} Qh3+ {[%emt 0:00:30]} 28. Qg2 {[%emt 0:00:30]} Qh6 {[%emt 0:00:30]} 29. Kg1 {[%emt 0:00:30]} g5 {[%emt 0:00:30]} 30. Rf1 {[%emt 0:00:24]} Qg7 {[%emt 0:00:30]} 31. fxg5 {[%emt 0:00:36]} Rg6 {[%emt 0:00:30]} 32. c3 {[%emt 0:00:30]} Rxg5 {[%emt 0:00:30]} 33. Kh2 {[%emt 0:00:30]} Rd6 {[%emt 0:00:30]} 34. g4 {[%emt 0:00:30]} fxg4 {[%emt 0:00:30]} 35. Qg3 {[%emt 0:00:30]} Qe5 {[%emt 0:00:30]} 36. Rf4 {[%emt 0:00:30]} Rh6+ {[%emt 0:00:30]} 37. Kg2 {[%emt 0:00:30]} Rh3 {[%emt 0:00:30]} 38. Qf2 {[%emt 0:00:30]} Rh2+ {[%emt 0:00:30]} 39. Kxh2 {[%emt 0:00:30]} g3+ {[%emt 0:00:30]} 40. Qxg3 {[%emt 0:00:28]} Rxg3 {[%emt 0:00:30]} 41. Kxg3 {[%emt 0:00:32]} h5 {[%emt 0:00:30]} 42. Bxh5 {[%emt 0:00:30]} Qxh5 {[%emt 0:00:30]} 43. Ra4 {[%emt 0:00:30]} Qd1 {[%emt 0:00:30]} 44. Kh4 {[%emt 0:00:30]} Bc6 {[%emt 0:00:30]} 45. Rg4+ {[%emt 0:00:30]} Kf8 {[%emt 0:00:30]} 46. Rxa7 {[%emt 0:00:30]} Qe1+ {[%emt 0:00:25]} 47. Kg5 {[%emt 0:00:30]} Qe3+ {[%emt 0:00:21]} 48. Rf4+ {[%emt 0:00:24]} Ke8 {[%emt 0:00:27]} 49. Raf7 {[%emt 0:00:36]} Bd7 {[%emt 0:00:47]} 50. Kg6 {[%emt 0:00:30]} Qg3+ {[%emt 0:00:30]} 51. Kh6 {[%emt 0:00:30]} e3 {[%emt 0:00:30]} 52. Rf8+ {[%emt 0:00:30]} Ke7 {[%emt 0:00:30]} 53. R8f7+ {[%emt 0:00:30]} Kd6 {[%emt 0:00:30]} 54. R4f6+ {[%emt 0:00:30]} Be6 {[%emt 0:00:30]} 55. Ra7 {[%emt 0:00:30]} Qh4+ {[%emt 0:00:21]} 56. Kg6 {[%emt 0:00:29]} Qg4+ {[%emt 0:00:39]} 0-1

[Event "1st Archibald 2019"]
[Site "Sochi"]
[Date "2019.05.14"]
[Round "3.21"]
[White "Alexeev, Alexey"]
[Black "Yudkevich, Mikhail"]
[Result "1/2-1/2"]
[ECO "D42"]
[WhiteElo "2292"]
[BlackElo "1971"]
[Annotator "RC"]
[PlyCount "110"]
[EventDate "2019.05.12"]
[EventType "swiss"]
[EventCountry "RUS"]
[SourceTitle "playchess.com"]
[Source "ChessBase"]
[SourceQuality "1"]
[TimeControl "5400+30"]

1. e4 {[%emt 1:15:20]} e6 {[%emt 1:15:20]} 2. d4 {[%emt 0:00:20]} d5 {[%emt 0:00:20]} 3. Nd2 {[%emt 0:00:20]} Nf6 {[%emt 0:00:20]} 4. Bd3 {[%emt 0:00:20]} c5 {[%emt 0:00:20]} 5. c3 {[%emt 0:00:20]} cxd4 {[%emt 0:00:20]} 6. cxd4 {[%emt 0:00:20]} Nc6 {[%emt 0:00:31]} 7. Ngf3 {[%emt 0:00:25]} dxe4 {[%emt 0:12:24]} 8. Nxe4 {[%emt 0:00:46]} Bb4+ {[%emt 0:00:38]} 9. Nc3 {[%emt 0:00:28]} O-O {[%emt 0:00:52]} 10. O-O {[%emt 0:00:29]} b6 {[%emt 0:03:45]} 11. a3 {[%emt 0:00:39]} Be7 {[%emt 0:00:30]} 12. Re1 {[%emt 0:00:28]} Bb7 {[%emt 0:00:30]} 13. Bc2 {[%emt 0:00:27]} Ba6 {[%emt 0:00:30]} 14. Be3 {[%emt 0:11:38]} Rc8 {[%emt 0:00:30]} 15. Rc1 {[%emt 0:05:00]} Na5 {[%emt 0:00:30]} 16. Bb1 {[%emt 0:00:30]} Qd6 {[%emt 0:00:30]} 17. Ng5 {[%emt 0:00:30]} Nc4 {[%emt 0:00:30]} 18. Nce4 {[%emt 0:00:30]} Nxe4 {[%emt 0:00:30]} 19. Nxe4 {[%emt 0:00:30]} Qd7 {[%emt 0:00:30]} 20. Qd3 {[%emt 0:00:30]} g6 {[%emt 0:00:30]} 21. Bh6 {[%emt 0:00:30]} Rfd8 {[%emt 0:00:29]} 22. Rcd1 {[%emt 0:00:30]} Bb7 {[%emt 0:00:31]} 23. Bc1 {[%emt 0:00:30]} Nd6 {[%emt 0:00:30]} 24. Ng3 {[%emt 0:00:30]} Bf6 {[%emt 0:00:30]} 25. Be3 {[%emt 0:00:30]} Bd5 {[%emt 0:00:30]} 26. f3 {[%emt 0:00:30]} Bc4 {[%emt 0:00:30]} 27. Qd2 {[%emt 0:00:30]} Bb3 {[%emt 0:00:30]} 28. Bg5 {[%emt 0:00:30]} Bxg5 {[%emt 0:00:30]} 29. Qxg5 {[%emt 0:00:25]} Bxd1 {[%emt 0:00:30]} 30. Rxd1 {[%emt 0:00:35]} Ne8 {[%emt 0:00:30]} 31. Ba2 {[%emt 0:00:30]} Rc7 {[%emt 0:00:30]} 32. Ne4 {[%emt 0:00:30]} Rdc8 {[%emt 0:00:30]} 33. h4 {[%emt 0:00:30]} Qa4 {[%emt 0:00:30]} 34. Rd2 {[%emt 0:00:30]} Rc2 {[%emt 0:00:30]} 35. d5 {[%emt 0:00:30]} exd5 {[%emt 0:00:30]} 36. Qxd5 {[%emt 0:00:30]} R2c7 {[%emt 0:00:30]} 37. Qe5 {[%emt 0:00:30]} Rd7 {[%emt 0:00:30]} 38. Bb3 {[%emt 0:00:30]} Qc6 {[%emt 0:00:30]} 39. Rc2 {[%emt 0:00:30]} Qb7 {[%emt 0:00:30]} 40. Rxc8 {[%emt 0:00:30]} Qxc8 {[%emt 0:00:22]} 41. Ba4 {[%emt 0:00:30]} Qc1+ {[%emt 0:00:38]} 42. Kh2 {[%emt 0:00:30]} Qc7 {[%emt 0:00:30]} 43. Qxc7 {[%emt 0:00:30]} Rxc7 {[%emt 0:00:30]} 44. Bxe8 {[%emt 0:00:25]} Rc2 {[%emt 0:00:25]} 45. b4 {[%emt 0:00:35]} Ra2 {[%emt 0:00:35]} 46. a4 {[%emt 0:00:30]} Rb2 {[%emt 0:00:26]} 47. b5 {[%emt 0:00:30]} Rb4 {[%emt 0:00:22]} 48. Nc3 {[%emt 0:00:20]} Rxh4+ {[%emt 0:00:28]} 49. Kg3 {[%emt 0:00:24]} Rc4 {[%emt 0:00:26]} 50. Nd5 {[%emt 0:00:46]} Rxa4 {[%emt 0:00:30]} 51. Bc6 {[%emt 0:00:30]} Kg7 {[%emt 0:00:48]} 52. f4 {[%emt 0:00:30]} f5 {[%emt 0:00:30]} 53. Kf3 {[%emt 0:00:30]} Ra3+ {[%emt 0:00:29]} 54. Ne3 {[%emt 0:00:30]} a6 {[%emt 0:00:31]} 55. bxa6 {[%emt 0:00:30]} Rxa6 {[%emt 0:00:22]} 1/2-1/2

[Event "1st Archibald 2019"]
[Site "Sochi"]
[Date "2019.05.14"]
[Round "3.22"]
[White "Yandarbiev, Ruslan"]
[Black "Yakimenko, Alexander A."]
[Result "1/2-1/2"]
[ECO "C18"]
[WhiteElo "2279"]
[BlackElo "2059"]
[Annotator "NA RC"]
[PlyCount "129"]
[EventDate "2019.05.12"]
[EventType "swiss"]
[EventCountry "RUS"]
[SourceTitle "playchess.com"]
[Source "ChessBase"]
[SourceQuality "1"]
[TimeControl "5400+30"]

1. e4 {[%emt 1:15:20]} e6 {[%emt 1:15:20]} 2. d4 {[%emt 0:00:20]} d5 {[%emt 0:00:20]} 3. Nc3 {[%emt 0:00:20]} Bb4 {[%emt 0:00:20]} 4. e5 {[%emt 0:00:20]} c5 {[%emt 0:00:20]} 5. a3 {[%emt 0:00:20]} Bxc3+ {[%emt 0:00:20]} 6. bxc3 {[%emt 0:00:20]} Qa5 {[%emt 0:00:20]} 7. Bd2 {[%emt 0:00:20]} Qa4 {[%emt 0:00:20]} 8. Qg4 {[%emt 0:00:20]} Kf8 {[%emt 0:00:20]} 9. Nf3 {[%emt 0:00:20]} Nc6 {[%emt 0:00:20]} 10. h3 {[%emt 0:04:38]} Nge7 {[%emt 0:10:02]} 11. Be2 {[%emt 0:02:14]} Qxc2 {[%emt 0:06:19]} 12. dxc5 {[%emt 0:05:59]} Ng6 {[%emt 0:01:29]} 13. Rc1 {[%emt 0:00:33]} Qe4 {[%emt 0:00:30]} 14. Qxe4 {[%emt 0:00:29]} dxe4 {[%emt 0:00:21]} 15. Ng5 {[%emt 0:00:29]} Ncxe5 {[%emt 0:00:39]} 16. Nxe4 {[%emt 0:00:27]} Bd7 {[%emt 0:00:30]} 17. O-O {[%emt 0:01:18]} Bc6 {[%emt 0:00:30]} 18. Nd6 {[%emt 0:01:09]} Ke7 {[%emt 0:00:30]} 19. f4 {[%emt 0:04:04]} Nd7 {[%emt 0:00:30]} 20. f5 {[%emt 0:00:30]} Nge5 {[%emt 0:00:30]} 21. fxe6 {[%emt 0:00:30]} Kxe6 {[%emt 0:00:30]} 22. Nxf7 {[%emt 0:00:30]} Nxf7 {[%emt 0:00:30]} 23. Bc4+ {[%emt 0:00:30]} Bd5 {[%emt 0:00:30]} 24. Bxd5+ {[%emt 0:00:30]} Kxd5 {[%emt 0:00:24]} 25. Rxf7 {[%emt 0:00:26]} Nxc5 {[%emt 0:00:36]} 26. Rxg7 {[%emt 0:00:34]} Rag8 {[%emt 0:00:30]} 27. c4+ {[%emt 0:00:30]} Ke4 {[%emt 0:00:30]} 28. Re7+ {[%emt 0:00:30]} Kd3 {[%emt 0:00:29]} 29. Bb4 {[%emt 0:00:30]} b6 {[%emt 0:00:31]} 30. Bxc5 {[%emt 0:00:30]} bxc5 {[%emt 0:00:28]} 31. Rd7+ {[%emt 0:00:24]} Ke2 {[%emt 0:00:32]} 32. Rc2+ {[%emt 0:00:36]} Ke3 {[%emt 0:00:30]} 33. Rc3+ {[%emt 0:00:30]} Ke2 {[%emt 0:00:30]} 34. Rf3 {[%emt 0:00:30]} h5 {[%emt 0:00:30]} 35. Rf5 {[%emt 0:00:30]} Rg3 {[%emt 0:00:30]} 36. Re5+ {[%emt 0:00:30]} Re3 {[%emt 0:00:29]} 37. Rde7 {[%emt 0:00:25]} Rxe5 {[%emt 0:00:31]} 38. Rxe5+ {[%emt 0:00:35]} Kd3 {[%emt 0:00:22]} 39. Rxc5 {[%emt 0:00:27]} h4 {[%emt 0:00:38]} 40. Rc7 {[%emt 0:00:33]} a5 {[%emt 0:00:30]} 41. c5 {[%emt 0:00:30]} Kc4 {[%emt 0:00:30]} 42. Rg7 {[%emt 0:00:30]} Kxc5 {[%emt 0:00:30]} 43. Rg5+ {[%emt 0:00:27]} Kb6 {[%emt 0:00:30]} 44. a4 {[%emt 0:00:33]} Rf8 {[%emt 0:00:30]} 45. Rg4 {[%emt 0:00:26]} Rh8 {[%emt 0:00:27]} 46. Kf2 {[%emt 0:00:29]} Kc5 {[%emt 0:00:32]} 47. Ke3 {[%emt 0:00:35]} Rh7 {[%emt 0:00:31]} 48. Kf4 {[%emt 0:00:30]} Rh5 {[%emt 0:00:30]} 49. Rg5+ {[%emt 0:00:30]} Rxg5 {[%emt 0:00:27]} 50. Kxg5 {[%emt 0:00:23]} Kb4 {[%emt 0:00:30]} 51. Kxh4 {[%emt 0:00:22]} Kxa4 {[%emt 0:00:31]} 52. g4 {[%emt 0:00:45]} Kb4 {[%emt 0:00:32]} 53. g5 {[%emt 0:00:28]} a4 {[%emt 0:00:30]} 54. g6 {[%emt 0:00:25]} a3 {[%emt 0:00:24]} 55. g7 {[%emt 0:00:26]} a2 {[%emt 0:00:24]} 56. g8=Q {[%emt 0:00:27]} a1=Q {[%emt 0:00:27]} 57. Qg5 {[%emt 0:00:44]} Qf1 {[%emt 0:00:45]} 58. Qg4+ {[%emt 0:00:30]} Kc5 {[%emt 0:00:30]} 59. Kg5 {[%emt 0:00:30]} Kd6 {[%emt 0:00:30]} 60. h4 {[%emt 0:00:30]} Ke7 {[%emt 0:00:30]} 61. Qe4+ {[%emt 0:00:30]} Kf8 {[%emt 0:00:30]} 62. Qa8+ {[%emt 0:00:30]} Kg7 {[%emt 0:00:30]} 63. Qa7+ {[%emt 0:00:30]} Qf7 {[%emt 0:00:30]} 64. Qd4+ {[%emt 0:00:30]} Kg8 {[%emt 0:00:30]} 65. h5 {[%emt 0:00:30]} 1/2-1/2

[Event "1st Archibald 2019"]
[Site "Sochi"]
[Date "2019.05.14"]
[Round "4.11"]
[White "Isanzhulov, Arystan"]
[Black "Solozhenkin, Evgeniy"]
[Result "1-0"]
[ECO "B21"]
[WhiteElo "2254"]
[BlackElo "2441"]
[Annotator "ChessBase"]
[PlyCount "61"]
[EventDate "2019.05.12"]
[EventType "swiss"]
[EventCountry "RUS"]
[SourceTitle "playchess.com"]
[Source "ChessBase"]
[SourceQuality "1"]
[TimeControl "5400+30"]

1. e4 {[%emt 0:00:00]} c5 {[%emt 0:00:00]} 2. d4 {[%emt 0:00:00]} cxd4 {[%emt 0:00:05]} 3. c3 {[%emt 0:00:00]} dxc3 {[%emt 0:00:27]} 4. Nxc3 {[%emt 0:00:00]} Nc6 {[%emt 0:00:38]} 5. Nf3 {[%emt 0:00:00]} e6 {[%emt 0:00:46]} 6. Bc4 {[%emt 0:00:42]} Qc7 {[%emt 0:00:26]} 7. O-O {[%emt 0:00:07]} Nf6 {[%emt 0:00:34]} 8. Nb5 {[%emt 0:00:06]} Qb8 {[%emt 0:00:05]} 9. e5 {[%emt 0:00:34]} Ng4 {[%emt 0:00:12]} 10. Bf4 {[%emt 0:00:00]} a6 {[%emt 0:00:00]} 11. Nd6+ {[%emt 0:00:00]} Bxd6 {[%emt 0:00:00]} 12. exd6 {[%emt 0:00:03]} O-O {[%emt 0:00:00]} 13. h3 {[%emt 0:00:00]} Nf6 {[%emt 0:00:00]} 14. Ne5 {[%emt 0:00:00]} Nxe5 {[%emt 0:23:40]} 15. Bxe5 {[%emt 0:01:54]} Ne8 {[%emt 0:00:02]} 16. a4 {[%emt 0:00:15]} b5 {[%emt 0:11:23]} 17. axb5 {[%emt 0:03:40]} axb5 {[%emt 0:00:04]} 18. Rxa8 {[%emt 0:00:22]} Qxa8 {[%emt 0:00:03]} 19. Bxb5 {[%emt 0:00:05]} Bb7 {[%emt 0:00:51]} 20. Qa4 {[%emt 0:20:40]} Bxg2 {[%emt 0:03:45]} 21. Qxa8 {[%emt 0:00:14]} Bxa8 {[%emt 0:00:04]} 22. Bxd7 {[%emt 0:01:09]} Nf6 {[%emt 0:00:09]} 23. Bxf6 {[%emt 0:08:08]} gxf6 {[%emt 0:00:04]} 24. Rc1 {[%emt 0:00:00]} Bb7 {[%emt 0:11:13]} 25. Rc7 {[%emt 0:00:19]} Rb8 {[%emt 0:00:00]} 26. b4 {[%emt 0:00:32]} Kf8 {[%emt 0:10:26]} 27. b5 {[%emt 0:02:55]} Be4 {[%emt 0:00:00]} 28. Bc6 {[%emt 0:04:53]} Bf5 {[%emt 0:00:10]} 29. b6 {[%emt 0:00:41]} Bxh3 {[%emt 0:10:33]} 30. b7 {[%emt 0:00:00]} e5 {[%emt 0:00:34]} 31. Bd7 {[%emt 0:00:33]} 1-0

[Event "1st Archibald 2019"]
[Site "Sochi"]
[Date "2019.05.14"]
[Round "4.13"]
[White "Pogosian, Manvel"]
[Black "Makoveev, Ilya"]
[Result "1/2-1/2"]
[ECO "D76"]
[WhiteElo "2388"]
[BlackElo "2290"]
[Annotator "NA"]
[PlyCount "77"]
[EventDate "2019.05.12"]
[EventType "swiss"]
[EventCountry "RUS"]
[SourceTitle "playchess.com"]
[Source "ChessBase"]
[SourceQuality "1"]
[TimeControl "5400+30"]

{[%evp 8,77,2,22,16,9,32767,32767,31,8,32767,6,63,54,58,25,27,32767,32767,26,49,61,67,50,80,32767,32767,32767,81,80,81,32767,59,13,20,0,32767,32767,0,8,12,13,14,16,32767,32767,14,3,3,0,32767,0,33,32767,0,5,37,32767,32767,0,33,34,25,0,0,0,31,0,0,0,0,0]} 1. d4 {[%emt 0:00:00]} Nf6 {[%emt 0:00:00]} 2. Nf3 {[%emt 0:00:00]} g6 {[%emt 0:00:00]} 3. g3 {[%emt 0:00:46]} Bg7 {[%emt 0:00:22]} 4. c4 {[%emt 0:00:16]} O-O {[%emt 0:00:00]} 5. Bg2 {[%emt 0:00:02]} d5 {[%emt 0:00:20]} 6. cxd5 {[%emt 0:00:38]} Nxd5 {[%emt 0:00:42]} 7. O-O {[%emt 0:00:00]} Nc6 {[%emt 0:01:02]} 8. Nc3 {[%emt 0:01:57]} Nb6 {[%emt 0:00:32]} 9. d5 {[%emt 0:04:59]} Bxc3 {[%emt 0:11:36] D76: Fianchetto Grünfeld: Main Line with 7...Nb6} (9... Ne5 10. Nxe5 Bxe5 11. Bh6 Re8 12. Rc1 a6 13. e4 e6 14. f4 Bh8 15. e5 exd5 16. Nxd5 Nxd5 17. Qxd5 Qxd5 18. Bxd5 {1-0 (55) Li,C (2699)-Corrales Jimenez,F (2563) chess.com INT 2019}) 10. dxc6 {[%emt 0:04:40]} Bg7 {[%emt 0:01:03]} 11. Qc2 {[%emt 0:09:30]} bxc6 {[%emt 0:04:10]} 12. Rd1 {[%emt 0:08:23]} Bf5 {[%emt 0:13:49]} 13. Qb3 {[%emt 0:00:24]} Nd7 $146 {[%emt 0:02:47]} ({Predecessor:} 13... Qe8 14. Nd4 Bd7 15. Qc2 Nd5 16. e4 Nb6 17. Be3 {½-½ (44) Valderrama Quiceno,E (2433)-Guerrero Sierra,J (2315) Medellin 2018}) 14. Nd4 {[%emt 0:08:20]} Nc5 {[%emt 0:03:56]} 15. Qc4 {[%emt 0:01:58]} Ne6 {[%emt 0:02:06]} 16. Be3 {[%emt 0:01:13]} Nxd4 {[%emt 0:00:43]} 17. Bxd4 {[%emt 0:00:06]} Bxd4 {[%emt 0:00:01]} 18. Rxd4 {[%emt 0:00:07]} Qb8 {[%emt 0:01:23]} 19. b3 {[%emt 0:01:44]} Qb6 {[%emt 0:00:41]} 20. Bxc6 {[%emt 0:03:59]} Rad8 {[%emt 0:00:26]} 21. Rxd8 {[%emt 0:11:36]} Rxd8 {[%emt 0:00:00]} 22. Bf3 {[%emt 0:00:31]} e5 {[%emt 0:12:27]} 23. e3 {[%emt 0:03:28]} Qf6 {[%emt 0:04:32]} 24. Rd1 {[%emt 0:21:36]} ({Don't go for} 24. Qxc7 $2 e4 $19 {[%mdl 64] Discovered Attack}) 24... Rxd1+ {[%emt 0:09:21]} 25. Bxd1 {[%emt 0:00:00]} Qd6 {[%emt 0:01:40]} 26. Bg4 {[%emt 0:06:10]} Bxg4 {[%emt 0:02:08]} 27. Qxg4 {[%emt 0:00:05]} Kg7 {[%emt 0:01:12]} 28. Qc4 {[%emt 0:02:18]} h5 {[%emt 0:04:25]} 29. h4 {[%emt 0:00:21]} Kf8 {[%emt 0:02:20]} 30. a4 {[%emt 0:00:00]} Ke7 {[%emt 0:02:13]} 31. a5 {[%emt 0:01:19]} c6 {[%emt 0:11:20]} 32. b4 {[%emt 0:03:41]} Qd1+ {[%emt 0:01:56]} 33. Kh2 {[%emt 0:00:14]} Qd5 {[%emt 0:01:05]} 34. Qa6 {[%emt 0:01:55]} Qd7 {[%emt 0:00:14]} 35. Qc4 {[%emt 0:02:22]} Qd5 {[%emt 0:00:00]} 36. Qa6 {[%emt 0:01:47]} Qd7 {[%emt 0:00:15]} 37. Kg1 {[%emt 0:00:13]} Qd1+ {[%emt 0:00:07]} 38. Kg2 {[%emt 0:00:08]} Qd5+ {[%emt 0:00:08]} 39. Kh2 $11 {[%emt 0:01:30]} 1/2-1/2

[Event "1st Archibald 2019"]
[Site "Sochi"]
[Date "2019.05.14"]
[Round "4.15"]
[White "Azimov, Ilyas"]
[Black "Guseva, Marina"]
[Result "1-0"]
[ECO "B90"]
[WhiteElo "2223"]
[BlackElo "2402"]
[Annotator "ChessBase"]
[PlyCount "67"]
[EventDate "2019.05.12"]
[EventType "swiss"]
[EventCountry "RUS"]
[SourceTitle "playchess.com"]
[Source "ChessBase"]
[SourceQuality "1"]
[TimeControl "5400+30"]

1. e4 {[%emt 0:00:00]} c5 {[%emt 0:00:00]} 2. Nf3 {[%emt 0:00:00]} d6 {[%emt 0:00:00]} 3. d4 {[%emt 0:00:00]} cxd4 {[%emt 0:00:00]} 4. Nxd4 {[%emt 0:00:00]} Nf6 {[%emt 0:00:00]} 5. Nc3 {[%emt 0:00:00]} a6 {[%emt 0:00:00]} 6. Nb3 {[%emt 0:00:00]} Nbd7 {[%emt 0:00:00]} 7. g4 {[%emt 0:02:27]} h6 {[%emt 0:03:07]} 8. Be3 {[%emt 0:06:12]} b5 {[%emt 0:01:25]} 9. Bg2 {[%emt 0:01:38]} Bb7 {[%emt 0:06:28]} 10. Qe2 {[%emt 0:06:04]} e5 {[%emt 0:09:41]} 11. a3 {[%emt 0:03:37]} Rc8 {[%emt 0:00:39]} 12. O-O-O {[%emt 0:02:48]} Qc7 {[%emt 0:22:13]} 13. h4 {[%emt 0:02:50]} g6 {[%emt 0:00:36]} 14. Bf3 {[%emt 0:06:46]} Nb6 {[%emt 0:04:04]} 15. g5 {[%emt 0:03:32]} hxg5 {[%emt 0:00:37]} 16. Bxb6 {[%emt 0:04:13]} Qxb6 {[%emt 0:00:04]} 17. hxg5 {[%emt 0:00:09]} Rxh1 {[%emt 0:01:01]} 18. Rxh1 {[%emt 0:00:43]} Nd7 {[%emt 0:00:09]} 19. Bg4 {[%emt 0:01:19]} Qd8 {[%emt 0:00:18]} 20. Qd2 {[%emt 0:03:58]} Rc7 {[%emt 0:16:24]} 21. Bxd7+ {[%emt 0:01:47]} Rxd7 {[%emt 0:01:40]} 22. Rh8 {[%emt 0:01:29]} f6 {[%emt 0:03:49]} 23. f4 {[%emt 0:06:47]} Rf7 {[%emt 0:12:47]} 24. fxe5 {[%emt 0:16:26]} fxe5 {[%emt 0:02:22]} 25. Kb1 {[%emt 0:00:00]} Qc7 {[%emt 0:08:13]} 26. Nd5 {[%emt 0:04:03]} Rf1+ {[%emt 0:00:33]} 27. Ka2 {[%emt 0:00:49]} Qg7 {[%emt 0:03:18]} 28. Rh2 {[%emt 0:01:16]} Be7 {[%emt 0:00:07]} 29. Nc7+ {[%emt 0:02:16]} Kf7 {[%emt 0:00:53]} 30. Qd3 {[%emt 0:02:25]} Rf4 {[%emt 0:01:12]} 31. Qh3 {[%emt 0:01:47]} Qg8 {[%emt 0:02:22]} 32. Qe6+ {[%emt 0:02:06]} Kf8 {[%emt 0:00:00]} 33. Qd7 {[%emt 0:00:23]} Kf7 {[%emt 0:00:23]} 34. Rh7+ {[%emt 0:01:09]} 1-0